Workbook

Sheet MonthlyTablePg25
A1: Monthly Employee | B1: ='Cash Flow & Forecast'!D5 -> JAN | C1: ='Cash Flow & Forecast'!E5 -> FEB | D1: ='Cash Flow & Forecast'!F5 -> MAR | E1: ='Cash Flow & Forecast'!G5 -> APR | F1: ='Cash Flow & Forecast'!H5 -> MAY | G1: ='Cash Flow & Forecast'!I5 -> JUN | H1: ='Cash Flow & Forecast'!J5 -> JUL | I1: ='Cash Flow & Forecast'!K5 -> AUG | J1: ='Cash Flow & Forecast'!L5 -> SEP | K1: ='Cash Flow & Forecast'!M5 -> OCT | L1: ='Cash Flow & Forecast'!N5 -> NOV | M1: ='Cash Flow & Forecast'!O5 -> DEC
A2: Travel Expense | B2: ='Cash Flow & Forecast'!D6 -> 2016 | C2: ='Cash Flow & Forecast'!E6 -> 2016 | D2: ='Cash Flow & Forecast'!F6 -> 2016 | E2: ='Cash Flow & Forecast'!G6 -> 2016 | F2: ='Cash Flow & Forecast'!H6 -> 2016 | G2: ='Cash Flow & Forecast'!I6 -> 2016 | H2: ='Cash Flow & Forecast'!J6 -> 2016 | I2: ='Cash Flow & Forecast'!K6 -> 2016 | J2: ='Cash Flow & Forecast'!L6 -> 2016 | K2: ='Cash Flow & Forecast'!M6 -> 2016 | L2: ='Cash Flow & Forecast'!N6 -> 2016 | M2: ='Cash Flow & Forecast'!O6 -> 2016 | N2: ='Cash Flow & Forecast'!P5 -> TOTAL
A3: Components
A4: ='Cash Flow & Forecast'!B10 -> Hotel and Lodging | B4: ='Cash Flow & Forecast'!D10 -> 300 | C4: ='Cash Flow & Forecast'!E10 -> 1000 | D4: ='Cash Flow & Forecast'!F10 -> 3000 | E4: ='Cash Flow & Forecast'!G10 -> 5000 | F4: ='Cash Flow & Forecast'!H10 -> 2000 | G4: ='Cash Flow & Forecast'!I10 -> 2000 | H4: ='Cash Flow & Forecast'!J10 -> 2000 | I4: ='Cash Flow & Forecast'!K10 -> 5000 | J4: ='Cash Flow & Forecast'!L10 -> 215000 | K4: ='Cash Flow & Forecast'!M10 -> 5000 | L4: ='Cash Flow & Forecast'!N10 -> 3000 | M4: ='Cash Flow & Forecast'!O10 -> 1000 | N4: ='Cash Flow & Forecast'!P10 -> 244300
A5: ='Cash Flow & Forecast'!B11 -> Business Meals | B5: ='Cash Flow & Forecast'!D11 -> 200 | C5: ='Cash Flow & Forecast'!E11 -> 500 | D5: ='Cash Flow & Forecast'!F11 -> 2000 | E5: ='Cash Flow & Forecast'!G11 -> 3000 | F5: ='Cash Flow & Forecast'!H11 -> 1500 | G5: ='Cash Flow & Forecast'!I11 -> 1500 | H5: ='Cash Flow & Forecast'!J11 -> 1500 | I5: ='Cash Flow & Forecast'!K11 -> 3000 | J5: ='Cash Flow & Forecast'!L11 -> 130000 | K5: ='Cash Flow & Forecast'!M11 -> 3000 | L5: ='Cash Flow & Forecast'!N11 -> 1500 | M5: ='Cash Flow & Forecast'!O11 -> 500 | N5: ='Cash Flow & Forecast'!P11 -> 148200
A6: ='Cash Flow & Forecast'!B12 -> Airline Travel | B6: ='Cash Flow & Forecast'!D12 -> 0 | C6: ='Cash Flow & Forecast'!E12 -> 0 | D6: ='Cash Flow & Forecast'!F12 -> 0 | E6: ='Cash Flow & Forecast'!G12 -> 0 | F6: ='Cash Flow & Forecast'!H12 -> 0 | G6: ='Cash Flow & Forecast'!I12 -> 3000 | H6: ='Cash Flow & Forecast'!J12 -> 3000 | I6: ='Cash Flow & Forecast'!K12 -> 3000 | J6: ='Cash Flow & Forecast'!L12 -> 20000 | K6: ='Cash Flow & Forecast'!M12 -> 10000 | L6: ='Cash Flow & Forecast'!N12 -> 2000 | M6: ='Cash Flow & Forecast'!O12 -> 1000 | N6: ='Cash Flow & Forecast'!P12 -> 42000
A7: ='Cash Flow & Forecast'!B13 -> Vehicle - Car Rental | B7: ='Cash Flow & Forecast'!D13 -> 100 | C7: ='Cash Flow & Forecast'!E13 -> 200 | D7: ='Cash Flow & Forecast'!F13 -> 400 | E7: ='Cash Flow & Forecast'!G13 -> 600 | F7: ='Cash Flow & Forecast'!H13 -> 600 | G7: ='Cash Flow & Forecast'!I13 -> 600 | H7: ='Cash Flow & Forecast'!J13 -> 600 | I7: ='Cash Flow & Forecast'!K13 -> 2000 | J7: ='Cash Flow & Forecast'!L13 -> 25000 | K7: ='Cash Flow & Forecast'!M13 -> 3000 | L7: ='Cash Flow & Forecast'!N13 -> 500 | M7: ='Cash Flow & Forecast'!O13 -> 200 | N7: ='Cash Flow & Forecast'!P13 -> 33800
A8: ='Cash Flow & Forecast'!B14 -> Travel Expense | B8: ='Cash Flow & Forecast'!D14 -> 50 | C8: ='Cash Flow & Forecast'!E14 -> 100 | D8: ='Cash Flow & Forecast'!F14 -> 200 | E8: ='Cash Flow & Forecast'!G14 -> 200 | F8: ='Cash Flow & Forecast'!H14 -> 200 | G8: ='Cash Flow & Forecast'!I14 -> 200 | H8: ='Cash Flow & Forecast'!J14 -> 200 | I8: ='Cash Flow & Forecast'!K14 -> 1000 | J8: ='Cash Flow & Forecast'!L14 -> 14000 | K8: ='Cash Flow & Forecast'!M14 -> 300 | L8: ='Cash Flow & Forecast'!N14 -> 200 | M8: ='Cash Flow & Forecast'!O14 -> 50 | N8: ='Cash Flow & Forecast'!P14 -> 16700
A9: ='Cash Flow & Forecast'!B15 -> Vehicle - Occasional | B9: ='Cash Flow & Forecast'!D15 -> 100 | C9: ='Cash Flow & Forecast'!E15 -> 100 | D9: ='Cash Flow & Forecast'!F15 -> 200 | E9: ='Cash Flow & Forecast'!G15 -> 250 | F9: ='Cash Flow & Forecast'!H15 -> 250 | G9: ='Cash Flow & Forecast'!I15 -> 250 | H9: ='Cash Flow & Forecast'!J15 -> 250 | I9: ='Cash Flow & Forecast'!K15 -> 1200 | J9: ='Cash Flow & Forecast'!L15 -> 17500 | K9: ='Cash Flow & Forecast'!M15 -> 400 | L9: ='Cash Flow & Forecast'!N15 -> 200 | M9: ='Cash Flow & Forecast'!O15 -> 100 | N9: ='Cash Flow & Forecast'!P15 -> 20800
A10: TOTALS | B10: =SUM(B4:B9) -> 750 | C10: 1900 | D10: 5800 | E10: 9050 | F10: 4550 | G10: 7550 | H10: 7550 | I10: 15200 | J10: 421500 | K10: 21700 | L10: 7400 | M10: 2850 | N10: 505800

Sheet Sheet1
A1: Table 1 page 24 bottom
A3: Summary Table - FPL Requested Rate Case Expense
A5: Component | B5: Totals
A6: ='Cash Flow & Forecast'!A8:B8 -> INCREMENTAL FPL Labor - Non-Exempt OT | B6: ='Cash Flow & Forecast'!P8 -> 82100
A7: ='Cash Flow & Forecast'!A9:B9 -> INCREMENTAL FPL Labor - Related Overhead | B7: ='Cash Flow & Forecast'!P9 -> 19992
A8: ='Cash Flow & Forecast'!A16:B16 -> Employee Related Travel Total | B8: ='Cash Flow & Forecast'!P16 -> 505800
A9: ='Cash Flow & Forecast'!A17 -> Outside Services - Security | B9: ='Cash Flow & Forecast'!P17 -> 24000
A10: ='Cash Flow & Forecast'!A20 -> Outside Services - Legal Fees Subtotal | B10: ='Cash Flow & Forecast'!P20 -> 750000
A11: ='Cash Flow & Forecast'!A22 -> Outside Services - IM & Accounting Subtotal | B11: ='Cash Flow & Forecast'!P22 -> 8500
A12: ='Cash Flow & Forecast'!A30 -> Outside Services - Temporary Labor Subtotal | B12: ='Cash Flow & Forecast'!P30 -> 832400
A13: ='Cash Flow & Forecast'!A38 -> Outside Services - Professional Subtotal | B13: ='Cash Flow & Forecast'!P38 -> 2363400
A14: ='Cash Flow & Forecast'!A42 -> Outside Services - Other Subtotal | B14: ='Cash Flow & Forecast'!P42 -> 86000
A15: ='Cash Flow & Forecast'!A50:B50 -> Office & Facilities Administration Total | B15: ='Cash Flow & Forecast'!P50 -> 181808
A16: ='Cash Flow & Forecast'!A52:B52 -> Office & Facilities Administration Total | B16: ='Cash Flow & Forecast'!P52 -> 71000
A17: Total | B17: =SUM(B6:B16) -> 4925000
A20: Table 2, page 26 top
A22: Employee Related Travel | B22: Amount
A23: ='Cash Flow & Forecast'!B10 -> Hotel and Lodging | B23: ='Cash Flow & Forecast'!P10 -> 244300
A24: ='Cash Flow & Forecast'!B11 -> Business Meals | B24: ='Cash Flow & Forecast'!P11 -> 148200
A25: ='Cash Flow & Forecast'!B12 -> Airline Travel | B25: ='Cash Flow & Forecast'!P12 -> 42000
A26: ='Cash Flow & Forecast'!B13 -> Vehicle - Car Rental | B26: ='Cash Flow & Forecast'!P13 -> 33800
A27: ='Cash Flow & Forecast'!B14 -> Travel Expense | B27: ='Cash Flow & Forecast'!P14 -> 16700
A28: ='Cash Flow & Forecast'!B15 -> Vehicle - Occasional | B28: ='Cash Flow & Forecast'!P15 -> 20800
A29: Employee Related Travel Total | B29: =SUM(B23:B28) -> 505800
A32: Table 3, page 29

Sheet Cash Flow & Forecast
A1: OPC 010917
A2: FPL RC-16
A3: RATE CASE EXPENSES
A5: Description | C5: DEC | D5: JAN | E5: FEB | F5: MAR | G5: APR | H5: MAY | I5: JUN | J5: JUL | K5: AUG | L5: SEP | M5: OCT | N5: NOV | O5: DEC | P5: TOTAL
C6: 2015 | D6: 2016 | E6: 2016 | F6: 2016 | G6: 2016 | H6: 2016 | I6: 2016 | J6: 2016 | K6: 2016 | L6: 2016 | M6: 2016 | N6: 2016 | O6: 2016
C7: Budget | D7: Budget | E7: Budget | F7: Budget | G7: Budget | H7: Budget | I7: Budget | J7: Budget | K7: Budget | L7: Budget | M7: Budget | N7: Budget | O7: Budget
A8: INCREMENTAL FPL Labor - Non-Exempt OT | D8: 500 | E8: 1600 | F8: 9400 | G8: 4600 | H8: 8100 | I8: 15600 | J8: 13100 | K8: 25200 | L8: 3500 | M8: 500 | P8: =SUM(C8:O8) -> 82100
A9: INCREMENTAL FPL Labor - Related Overhead | C9: 0 | D9: 122 | E9: 390 | F9: 2290 | G9: 1119 | H9: 1972 | I9: 3799 | J9: 3190 | K9: 6136 | L9: 852 | M9: 122 | N9: 0 | O9: 0 | P9: =SUM(C9:O9) -> 19992
B10: Hotel and Lodging | D10: 300 | E10: 1000 | F10: 3000 | G10: 5000 | H10: 2000 | I10: 2000 | J10: 2000 | K10: 5000 | L10: 215000 | M10: 5000 | N10: 3000 | O10: 1000 | P10: =SUM(C10:O10) -> 244300
B11: Business Meals | D11: 200 | E11: 500 | F11: 2000 | G11: 3000 | H11: 1500 | I11: 1500 | J11: 1500 | K11: 3000 | L11: 130000 | M11: 3000 | N11: 1500 | O11: 500 | P11: 148200
B12: Airline Travel | I12: 3000 | J12: 3000 | K12: 3000 | L12: 20000 | M12: 10000 | N12: 2000 | O12: 1000 | P12: 42000
B13: Vehicle - Car Rental | D13: 100 | E13: 200 | F13: 400 | G13: 600 | H13: 600 | I13: 600 | J13: 600 | K13: 2000 | L13: 25000 | M13: 3000 | N13: 500 | O13: 200 | P13: 33800
B14: Travel Expense | D14: 50 | E14: 100 | F14: 200 | G14: 200 | H14: 200 | I14: 200 | J14: 200 | K14: 1000 | L14: 14000 | M14: 300 | N14: 200 | O14: 50 | P14: 16700
B15: Vehicle - Occasional | D15: 100 | E15: 100 | F15: 200 | G15: 250 | H15: 250 | I15: 250 | J15: 250 | K15: 1200 | L15: 17500 | M15: 400 | N15: 200 | O15: 100 | P15: 20800
A16: Employee Related Travel Total | C16: =SUM(C10:C15) -> 0 | D16: =SUM(D10:D15) -> 750 | E16: 1900 | F16: 5800 | G16: 9050 | H16: 4550 | I16: 7550 | J16: 7550 | K16: 15200 | L16: 421500 | M16: 21700 | N16: 7400 | O16: 2850 | P16: =SUM(P10:P15) -> 505800
A17: Outside Services - Security | K17: 12000 | L17: 12000 | P17: =SUM(C17:O17) -> 24000
B18: Radey Law Firm | C18: 50000 | D18: 15000 | E18: 30000 | F18: 30000 | G18: 40000 | H18: 40000 | I18: 40000 | J18: 40000 | K18: 50000 | L18: 50000 | M18: 25000 | N18: 15000 | O18: 10000 | P18: =SUM(C18:O18) -> 435000
B19: Gunster Law Firm | C19: 50000 | D19: 10000 | E19: 10000 | F19: 10000 | G19: 15000 | H19: 25000 | I19: 30000 | J19: 40000 | K19: 40000 | L19: 40000 | M19: 20000 | N19: 15000 | O19: 10000 | P19: =SUM(C19:O19) -> 315000
A20: Outside Services - Legal Fees Subtotal | C20: =SUM(C18:C19) -> 100000 | D20: =SUM(D18:D19) -> 25000 | E20: 40000 | F20: 40000 | G20: 55000 | H20: 65000 | I20: 70000 | J20: 80000 | K20: 90000 | L20: 90000 | M20: 45000 | N20: 30000 | O20: 20000 | P20: =SUM(C20:O20) -> 750000
B21: Deloitte & Touche LLP | H21: 4250 | I21: 4250 | P21: =SUM(C21:O21) -> 8500
A22: Outside Services - IM & Accounting Subtotal | C22: =SUM(C21:C21) -> 0 | D22: 0 | E22: 0 | F22: 0 | G22: 0 | H22: 4250 | I22: 4250 | J22: 0 | K22: 0 | L22: 0 | M22: 0 | N22: 0 | O22: 0 | P22: 8500
B23: Accounting Support | D23: 37400 | E23: 37400 | F23: 57000 | G23: 65200 | H23: 65200 | I23: 65200 | J23: 59600 | K23: 24400 | P23: =SUM(C23:O23) -> 411400
B24: Regulatory Affairs Support | D24: 17500 | E24: 17500 | F24: 17500 | G24: 17500 | H24: 17500 | I24: 17500 | J24: 17500 | K24: 17500 | P24: 140000
B25: Rates & Tariffs Support | D25: 4000 | E25: 39200 | F25: 4200 | G25: 4200 | H25: 4200 | I25: 4200 | J25: 19200 | K25: 14200 | L25: 4200 | M25: 4200 | N25: 19200 | O25: 4000 | P25: 125000
B26: Finance Support | C26: 40000 | D26: 20000 | E26: 20000 | F26: 20000 | P26: 100000
B27: General Counsel Support | F27: 5000 | G27: 5000 | H27: 5000 | I27: 5000 | J27: 5000 | K27: 5000 | L27: 5000 | P27: 35000
B28: Technical Hearing | I28: 3000 | J28: 4000 | K28: 8000 | L28: 5000 | P28: 20000
B29: Couriers | D29: 100 | E29: 100 | F29: 100 | G29: 100 | H29: 100 | I29: 100 | J29: 100 | K29: 100 | L29: 100 | M29: 100 | P29: 1000
A30: Outside Services - Temporary Labor Subtotal | C30: =SUM(C23:C29) -> 40000 | D30: =SUM(D23:D29) -> 79000 | E30: 114200 | F30: 103800 | G30: 92000 | H30: 92000 | I30: 95000 | J30: 105400 | K30: 69200 | L30: 14300 | M30: 4300 | N30: 19200 | O30: 4000 | P30: =SUM(P23:P29) -> 832400
B31: Concentric Energy Advisors, Inc. | C31: 20000 | D31: 20000 | E31: 40000 | F31: 40000 | G31: 20000 | H31: 45000 | I31: 45000 | J31: 50000 | K31: 70000 | L31: 40000 | M31: 10000 | P31: =SUM(C31:O31) -> 400000
B32: Sussex Consulting | C32: 15000 | D32: 15000 | E32: 20000 | F32: 20000 | G32: 10000 | H32: 30000 | I32: 35000 | J32: 40000 | K32: 45000 | L32: 15000 | M32: 5000 | P32: 250000
B33: Gannett Fleming, Inc. | C33: 15000 | D33: 10000 | E33: 20000 | F33: 20000 | G33: 20000 | H33: 20000 | I33: 25000 | J33: 25000 | K33: 35000 | L33: 25000 | M33: 10000 | P33: =SUM(C33:O33) -> 225000
B34: Gannett Fleming, Inc. Depreciation Study | C34: 100000 | P34: =SUM(C34:O34) -> 100000
B35: Burns & McDonnell Dismantlement Study | C35: 275000 | G35: 10000 | H35: 10000 | I35: 10000 | J35: 10000 | K35: 20000 | L35: 10000 | M35: 10000 | P35: =SUM(C35:O35) -> 355000
B36: Potential Rebuttal Witnesses / Professional Services | C36: 155000 | D36: 0 | E36: 0 | F36: 0 | G36: 10000 | H36: 123800 | I36: 156600 | J36: 177000 | K36: 217800 | L36: 120800 | M36: 32400 | N36: 0 | O36: 0 | P36: =SUM(C36:O36) -> 993400
B37: William Feaster | J37: 20000 | K37: 20000 | P37: 40000
A38: Outside Services - Professional Subtotal | C38: =SUM(C31:C37) -> 580000 | D38: =SUM(D31:D37) -> 45000 | E38: 80000 | F38: 80000 | G38: 70000 | H38: 228800 | I38: 271600 | J38: 322000 | K38: 407800 | L38: 210800 | M38: 67400 | N38: 0 | O38: 0 | P38: 2363400
B39: Accurate Stenotype Reporters, Inc. | K39: 10000 | L39: 25000 | M39: 10000 | P39: =SUM(C39:O39) -> 45000
B40: Novitex Enterprise Solutions | H40: 2850 | I40: 2850 | J40: 10550 | K40: 10550 | L40: 2850 | M40: 2850 | P40: =SUM(C40:O40) -> 32500
B41: Epperson Media and Technology | H41: 2750 | I41: 3000 | J41: 2750 | P41: =SUM(C41:O41) -> 8500
A42: Outside Services - Other Subtotal | C42: =SUM(C39:C41) -> 0 | D42: =SUM(D39:D41) -> 0 | E42: 0 | F42: 0 | G42: 0 | H42: 5600 | I42: 5850 | J42: 13300 | K42: 20550 | L42: 27850 | M42: 12850 | N42: 0 | O42: 0 | P42: =SUM(P39:P41) -> 86000
A43: Contractor & Professional Total | C43: =C42+C38+C30+C22+C20+C17 -> 720000 | D43: 149000 | E43: 234200 | F43: 223800 | G43: 217000 | H43: 395650 | I43: 446700 | J43: 520700 | K43: 599550 | L43: 354950 | M43: 129550 | N43: 49200 | O43: 24000 | P43: 4064300
B44: Meeting Set-up | I44: 350 | J44: 350 | K44: 500 | P44: =SUM(C44:O44) -> 1200
B45: Rent - Meeting Facilities | I45: 7000 | K45: 25000 | P45: 32000
B46: Rent - Copy Machines | C46: 1000 | D46: 1000 | E46: 1000 | F46: 1000 | G46: 1000 | H46: 1000 | I46: 1000 | J46: 11000 | K46: 11000 | L46: 11000 | M46: 1000 | N46: 1000 | O46: 1000 | P46: 43000
B47: Office Supplies & Rounding | C47: 900 | D47: 1428 | E47: 1610 | F47: 1010 | G47: 1431 | H47: 1928 | I47: 2201 | J47: 2310 | K47: 2614 | L47: 2498 | M47: 828 | N47: 200 | O47: 50 | P47: 19008
B48: Printing | F48: 32000 | I48: 4000 | J48: 40000 | K48: 4000 | P48: 80000
B49: Postage | C49: 100 | D49: 200 | E49: 300 | F49: 700 | G49: 800 | H49: 800 | I49: 800 | J49: 800 | K49: 800 | L49: 700 | M49: 300 | N49: 200 | O49: 100 | P49: 6600
A50: Office & Facilities Administration Total | C50: =SUM(C44:C49) -> 2000 | D50: 2628 | E50: 2910 | F50: 34710 | G50: 3231 | H50: 3728 | I50: 15351 | J50: 54460 | K50: 43914 | L50: 14198 | M50: 2128 | N50: 1400 | O50: 1150 | P50: 181808
B51: Communications - Print | J51: 71000 | P51: =SUM(C51:O51) -> 71000
A52: Office & Facilities Administration Total | C52: =C51 -> 0 | D52: 0 | E52: 0 | F52: 0 | G52: 0 | H52: 0 | I52: 0 | J52: 71000 | K52: 0 | L52: 0 | M52: 0 | N52: 0 | O52: 0 | P52: 71000
A53: Grand Total | C53: =C52+C50+C43+C16+C9+C8 -> 722000 | D53: 153000 | E53: 241000 | F53: 276000 | G53: 235000 | H53: 414000 | I53: 489000 | J53: 670000 | K53: 690000 | L53: 795000 | M53: 154000 | N53: 58000 | O53: 28000 | P53: 4925000
